{"text_format":"1","workbook":"xlsx","n_sheets":3,"sheets":["Feuil1","Feuil2","Feuil3"],"not_rendered":{"charts":0,"images":0,"macros":1,"external_links":0,"defined_names":0,"comments":0,"pivot_tables":0},"unopened":[],"bounds":{"document_bytes":16777216,"sheet_cells":100000,"rows_first":2000,"rows_last":500,"rows_between":2000,"halvings":0,"cell_chars":16384,"cell_head_chars":4096},"cells_cut":0,"cells_raw":0,"read":"whole","date_system":"1900"}

{"sheet":"Feuil1","index":0,"n_rows":155,"n_cols":34,"rows_kept":155,"cut":false,"hidden":false,"merged":[[0,0,0,33],[1,0,1,33]]}
["AS   CUCQ  PETANQUE"]
["                            CONCOURS DU :"]
[]
[null,null,null,"N","E","G",null,"S","N","E","G",null,"S","N","E","G",null,"S","N","E","G",null,"S","N","E","G",null,"S","S",null,null,"TOTAL+","TOTAL-","POINTS"]
[1,1,null,13,2,{"$f":"IF(AND(D5:D43=13,E5:E43<>13),1,0)","v":1},null,{"$f":"IF(G5=1,4,IF(G5=2,6,IF(G5=3,8,\"\")))","v":""},null,null,{"$f":"IF(AND(I5:I43=13,J5:J43<>13),1,0)","v":0},null,{"$f":"IF(L5=1,4,IF(L5=2,6,IF(L5=3,8,\"\")))","v":""},null,null,{"$f":"IF(AND(N5:N43=13,O5:O43<>13),1,0)","v":0},null,{"$f":"IF(Q5=1,4,IF(Q5=2,6,IF(Q5=3,8,\"\")))","v":""},null,null,{"$f":"IF(AND(S5:S43=13,T5:T43<>13),1,0)","v":0},null,{"$f":"IF(V5=1,4,IF(V5=2,6,IF(V5=3,8,\"\")))","v":""},null,null,{"$f":"IF(AND(X5:X43=13,Y5:Y43<>13),1,0)","v":0},null,{"$f":"IF(AA5=1,4,IF(AA5=2,6,IF(AA5=3,8,\"\")))","v":""},null,null,{"$f":"Z5+U5+P5+K5+F5","v":1},{"$f":"X5+S5+N5+I5+D5","v":13},{"$f":"Y5+T5+O5+J5+E5","v":2},{"$f":"AF5-AG5","v":11}]
[2,2,null,2,13,0,null,{"$f":"IF(G6=1,4,IF(G6=2,6,IF(G6=3,8,\"\")))","v":""},null,null,0,null,{"$f":"IF(L6=1,4,IF(L6=2,6,IF(L6=3,8,\"\")))","v":""},null,null,0,null,{"$f":"IF(Q6=1,4,IF(Q6=2,6,IF(Q6=3,8,\"\")))","v":""},null,null,0,null,{"$f":"IF(V6=1,4,IF(V6=2,6,IF(V6=3,8,\"\")))","v":""},null,null,0,null,{"$f":"IF(AA6=1,4,IF(AA6=2,6,IF(AA6=3,8,\"\")))","v":""},null,null,{"$f":"Z6+U6+P6+K6+F6","v":0},{"$f":"X6+S6+N6+I6+D6","v":2},{"$f":"Y6+T6+O6+J6+E6","v":13},{"$f":"AF6-AG6","v":-11}]
[3,3,null,null,null,0,null,"",null,null,0,null,"",null,null,0,null,"",null,null,0,null,"",null,null,0,null,"",null,null,0,0,0,0]
[4,4,null,null,null,0,null,"",null,null,0,null,"",null,null,0,null,"",null,null,0,null,"",null,null,0,null,"",null,null,0,0,0,0]
[5,5,null,null,null,0,null,"",null,null,0,null,"",null,null,0,null,"",null,null,0,null,"",null,null,0,null,"",null,null,0,0,0,0]
[6,6,null,null,null,0,null,"",null,null,0,null,"",null,null,0,null,"",null,null,0,null,"",null,null,0,null,"",null,null,0,0,0,0]
[7,7,null,null,null,0,null,"",null,null,0,null,"",null,null,0,null,"",null,null,0,null,"",null,null,0,null,"",null,null,0,0,0,0]
[8,8,null,null,null,0,null,"",null,null,0,null,"",null,null,0,null,"",null,null,0,null,"",null,null,0,null,"",null,null,0,0,0,0]
[9,9,null,null,null,0,null,"",null,null,0,null,"",null,null,0,null,"",null,null,0,null,"",null,null,0,null,"",null,null,0,0,0,0]
[10,10,null,null,null,0,null,"",null,null,0,null,"",null,null,0,null,"",null,null,0,null,"",null,null,0,null,"",null,null,0,0,0,0]
[11,11,null,null,null,0,null,"",null,null,0,null,"",null,null,0,null,"",null,null,0,null,"",null,null,0,null,"",null,null,0,{"$f":"X15+S15+N15+I15+D15","v":0},{"$f":"Y15+T15+O15+J15+E15","v":0},{"$f":"AF15-AG15","v":0}]
[12,12,null,null,null,0,null,"",null,null,0,null,"",null,null,0,null,"",null,null,0,null,"",null,null,0,null,"",null,null,0,0,0,0]
[13,13,null,null,null,0,null,"",null,null,0,null,"",null,null,0,null,"",null,null,0,null,"",null,null,0,null,"",null,null,0,0,0,0]
[14,14,null,null,null,0,null,"",null,null,0,null,"",null,null,0,null,"",null,null,0,null,"",null,null,0,null,"",null,null,0,0,0,0]
[15,15,null,null,null,0,null,"",null,null,0,null,"",null,null,0,null,"",null,null,0,null,"",null,null,0,null,"",null,null,0,0,0,0]
[16,16,null,null,null,0,null,"",null,null,0,null,"",null,null,0,null,"",null,null,0,null,"",null,null,0,null,"",null,null,0,0,0,0]
[17,17,null,null,null,0,null,"",null,null,0,null,"",null,null,0,null,"",null,null,0,null,"",null,null,0,null,"",null,null,0,0,0,0]
[18,18,null,null,null,0,null,"",null,null,0,null,"",null,null,0,null,"",null,null,0,null,"",null,null,0,null,"",null,null,0,0,0,0]
[19,19,null,null,null,0,null,"",null,null,0,null,"",null,null,0,null,"",null,null,0,null,"",null,null,0,null,"",null,null,0,0,0,0]
[20,20,null,null,null,0,null,"",null,null,0,null,"",null,null,0,null,"",null,null,0,null,"",null,null,0,null,"",null,null,0,0,0,0]
[21,21,null,null,null,0,null,"",null,null,0,null,"",null,null,0,null,"",null,null,0,null,"",null,null,0,null,"",null,null,0,0,0,0]
[22,22,null,null,null,0,null,"",null,null,0,null,"",null,null,0,null,"",null,null,0,null,"",null,null,0,null,"",null,null,0,0,0,0]
[23,23,null,null,null,0,null,"",null,null,0,null,"",null,null,0,null,"",null,null,0,null,"",null,null,0,null,"",null,null,0,0,0,0]
[24,24,null,null,null,0,null,"",null,null,0,null,"",null,null,0,null,"",null,null,0,null,"",null,null,0,null,"",null,null,0,0,0,0]
[25,25,null,null,null,0,null,"",null,null,0,null,"",null,null,0,null,"",null,null,0,null,"",null,null,0,null,"",null,null,0,0,0,0]
[26,26,null,null,null,0,null,"",null,null,0,null,"",null,null,0,null,"",null,null,0,null,"",null,null,0,null,"",null,null,0,0,0,0]
[27,27,null,null,null,0,null,"",null,null,0,null,"",null,null,0,null,"",null,null,0,null,"",null,null,0,null,"",null,null,0,0,0,0]
[28,28,null,null,null,0,null,"",null,null,0,null,"",null,null,0,null,"",null,null,0,null,"",null,null,0,null,"",null,null,0,0,0,0]
[29,29,null,null,null,0,null,"",null,null,0,null,"",null,null,0,null,"",null,null,0,null,"",null,null,0,null,"",null,null,0,0,0,0]
[30,30,null,null,null,0,null,"",null,null,0,null,"",null,null,0,null,"",null,null,0,null,"",null,null,0,null,"",null,null,0,0,0,0]
[31,31,null,null,null,0,null,"",null,null,0,null,"",null,null,0,null,"",null,null,0,null,"",null,null,0,null,"",null,null,0,0,0,0]
[32,32,null,null,null,0,null,"",null,null,0,null,"",null,null,0,null,"",null,null,0,null,"",null,null,0,null,"",null,null,0,0,0,0]
[33,33,null,null,null,0,null,"",null,null,0,null,"",null,null,0,null,"",null,null,0,null,"",null,null,0,null,"",null,null,0,0,0,0]
[34,34,null,null,null,0,null,"",null,null,0,null,"",null,null,0,null,"",null,null,0,null,"",null,null,0,null,"",null,null,0,0,0,0]
[35,35,null,null,null,0,null,"",null,null,0,null,"",null,null,0,null,"",null,null,0,null,"",null,null,0,null,"",null,null,0,0,0,0]
[36,36,null,null,null,0,null,"",null,null,0,null,"",null,null,0,null,"",null,null,0,null,"",null,null,0,null,"",null,null,0,0,0,0]
[37,37,null,null,null,0,null,"",null,null,0,null,"",null,null,0,null,"",null,null,0,null,"",null,null,0,null,"",null,null,0,0,0,0]
[38,38,null,null,null,0,null,"",null,null,0,null,"",null,null,0,null,"",null,null,0,null,"",null,null,0,null,"",null,null,0,0,0,0]
[39,39,null,null,null,0,null,"",null,null,0,null,"",null,null,0,null,"",null,null,0,null,"",null,null,0,null,"",null,null,0,0,0,0]
[40,40,null,null,null,0,null,"",null,null,0,null,"",null,null,0,null,"",null,null,0,null,"",null,null,0,null,"",null,null,0,0,0,0]
[41,41,null,null,null,0,null,"",null,null,0,null,"",null,null,0,null,"",null,null,0,null,"",null,null,0,null,"",null,null,0,0,0,0]
[42,42,null,null,null,0,null,"",null,null,0,null,"",null,null,0,null,"",null,null,0,null,"",null,null,0,null,"",null,null,0,0,0,0]
[43,43,null,null,null,0,null,"",null,null,0,null,"",null,null,0,null,"",null,null,0,null,"",null,null,0,null,"",null,null,0,0,0,0]
[44,44,null,null,null,0,null,"",null,null,0,null,"",null,null,0,null,"",null,null,0,null,"",null,null,0,null,"",null,null,0,0,0,0]
[45,45,null,null,null,0,null,"",null,null,0,null,"",null,null,0,null,"",null,null,0,null,"",null,null,0,null,"",null,null,0,0,0,0]
[46,46,null,null,null,0,null,"",null,null,0,null,"",null,null,0,null,"",null,null,0,null,"",null,null,0,null,"",null,null,0,0,0,0]
[47,47,null,null,null,0,null,"",null,null,0,null,"",null,null,0,null,"",null,null,0,null,"",null,null,0,null,"",null,null,0,0,0,0]
[48,48,null,null,null,0,null,"",null,null,0,null,"",null,null,0,null,"",null,null,0,null,"",null,null,0,null,"",null,null,0,0,0,0]
[49,49,null,null,null,0,null,"",null,null,0,null,"",null,null,0,null,"",null,null,0,null,"",null,null,0,null,"",null,null,0,0,0,0]
[50,50,null,null,null,0,null,"",null,null,0,null,"",null,null,0,null,"",null,null,0,null,"",null,null,0,null,"",null,null,0,0,0,0]
[51,51,null,null,null,0,null,"",null,null,0,null,"",null,null,0,null,"",null,null,0,null,"",null,null,0,null,"",null,null,0,0,0,0]
[52,52,null,null,null,0,null,"",null,null,0,null,"",null,null,0,null,"",null,null,0,null,"",null,null,0,null,"",null,null,0,0,0,0]
[53,53,null,null,null,0,null,"",null,null,0,null,"",null,null,0,null,"",null,null,0,null,"",null,null,0,null,"",null,null,0,0,0,0]
[54,54,null,null,null,0,null,"",null,null,0,null,"",null,null,0,null,"",null,null,0,null,"",null,null,0,null,"",null,null,0,0,0,0]
[55,55,null,null,null,0,null,"",null,null,0,null,"",null,null,0,null,"",null,null,0,null,"",null,null,0,null,"",null,null,0,0,0,0]
[56,56,null,null,null,0,null,"",null,null,0,null,"",null,null,0,null,"",null,null,0,null,"",null,null,0,null,"",null,null,0,0,0,0]
[57,57,null,null,null,0,null,"",null,null,0,null,"",null,null,0,null,"",null,null,0,null,"",null,null,0,null,"",null,null,0,0,0,0]
[58,58,null,null,null,0,null,"",null,null,0,null,"",null,null,0,null,"",null,null,0,null,"",null,null,0,null,"",null,null,0,0,0,0]
[59,59,null,null,null,0,null,"",null,null,0,null,"",null,null,0,null,"",null,null,0,null,"",null,null,0,null,"",null,null,0,0,0,0]
[60,60,null,null,null,0,null,"",null,null,0,null,"",null,null,0,null,"",null,null,0,null,"",null,null,0,null,"",null,null,0,0,0,0]
[61,61,null,null,null,0,null,"",null,null,0,null,"",null,null,0,null,"",null,null,0,null,"",null,null,0,null,"",null,null,0,0,0,0]
[62,62,null,null,null,0,null,"",null,null,0,null,"",null,null,0,null,"",null,null,0,null,"",null,null,0,null,"",null,null,0,0,0,0]
[63,63,null,null,null,0,null,"",null,null,0,null,"",null,null,0,null,"",null,null,0,null,"",null,null,0,null,"",null,null,0,0,0,0]
[64,64,null,null,null,0,null,"",null,null,0,null,"",null,null,0,null,"",null,null,0,null,"",null,null,0,null,"",null,null,0,0,0,0]
[65,65,null,null,null,0,null,"",null,null,{"$f":"IF(AND(I69:I107=13,J69:J107<>13),1,0)","v":0},null,"",null,null,{"$f":"IF(AND(N69:N107=13,O69:O107<>13),1,0)","v":0},null,"",null,null,{"$f":"IF(AND(S69:S107=13,T69:T107<>13),1,0)","v":0},null,"",null,null,{"$f":"IF(AND(X69:X107=13,Y69:Y107<>13),1,0)","v":0},null,"",null,null,0,0,0,0]
[66,66,null,null,null,{"$f":"IF(AND(D70:D108=13,E70:E108<>13),1,0)","v":0},null,{"$f":"IF(G70=1,4,IF(G70=2,6,IF(G70=3,8,\"\")))","v":""},null,null,0,null,{"$f":"IF(L70=1,4,IF(L70=2,6,IF(L70=3,8,\"\")))","v":""},null,null,0,null,{"$f":"IF(Q70=1,4,IF(Q70=2,6,IF(Q70=3,8,\"\")))","v":""},null,null,0,null,{"$f":"IF(V70=1,4,IF(V70=2,6,IF(V70=3,8,\"\")))","v":""},null,null,0,null,{"$f":"IF(AA70=1,4,IF(AA70=2,6,IF(AA70=3,8,\"\")))","v":""},null,null,{"$f":"Z70+U70+P70+K70+F70","v":0},0,0,0]
[67,67,null,null,null,0,null,"",null,null,0,null,"",null,null,0,null,"",null,null,0,null,"",null,null,0,null,"",null,null,0,0,0,0]
[68,68,null,null,null,0,null,"",null,null,0,null,"",null,null,0,null,"",null,null,0,null,"",null,null,0,null,"",null,null,0,0,0,0]
[69,69,null,null,null,0,null,"",null,null,0,null,"",null,null,0,null,"",null,null,0,null,"",null,null,0,null,"",null,null,0,0,0,0]
[70,70,null,null,null,0,null,"",null,null,0,null,"",null,null,0,null,"",null,null,0,null,"",null,null,0,null,"",null,null,0,0,0,0]
[71,71,null,null,null,0,null,"",null,null,0,null,"",null,null,0,null,"",null,null,0,null,"",null,null,0,null,"",null,null,0,0,0,0]
[72,72,null,null,null,0,null,"",null,null,0,null,"",null,null,0,null,"",null,null,0,null,"",null,null,0,null,"",null,null,0,0,0,0]
[73,73,null,null,null,0,null,"",null,null,0,null,"",null,null,0,null,"",null,null,0,null,"",null,null,0,null,"",null,null,0,0,0,0]
[74,74,null,null,null,0,null,"",null,null,0,null,"",null,null,0,null,"",null,null,0,null,"",null,null,0,null,"",null,null,0,0,0,0]
[75,75,null,null,null,0,null,"",null,null,0,null,"",null,null,0,null,"",null,null,0,null,"",null,null,0,null,"",null,null,0,{"$f":"X79+S79+N79+I79+D79","v":0},{"$f":"Y79+T79+O79+J79+E79","v":0},{"$f":"AF79-AG79","v":0}]
[76,76,null,null,null,0,null,"",null,null,0,null,"",null,null,0,null,"",null,null,0,null,"",null,null,0,null,"",null,null,0,0,0,0]
[77,77,null,null,null,0,null,"",null,null,0,null,"",null,null,0,null,"",null,null,0,null,"",null,null,0,null,"",null,null,0,0,0,0]
[78,78,null,null,null,0,null,"",null,null,0,null,"",null,null,0,null,"",null,null,0,null,"",null,null,0,null,"",null,null,0,0,0,0]
[79,79,null,null,null,0,null,"",null,null,0,null,"",null,null,0,null,"",null,null,0,null,"",null,null,0,null,"",null,null,0,0,0,0]
[80,80,null,null,null,0,null,"",null,null,0,null,"",null,null,0,null,"",null,null,0,null,"",null,null,0,null,"",null,null,0,0,0,0]
[81,81,null,null,null,0,null,"",null,null,0,null,"",null,null,0,null,"",null,null,0,null,"",null,null,0,null,"",null,null,0,0,0,0]
[82,82,null,null,null,0,null,"",null,null,0,null,"",null,null,0,null,"",null,null,0,null,"",null,null,0,null,"",null,null,0,0,0,0]
[83,83,null,null,null,0,null,"",null,null,0,null,"",null,null,0,null,"",null,null,0,null,"",null,null,0,null,"",null,null,0,0,0,0]
[84,84,null,null,null,0,null,"",null,null,0,null,"",null,null,0,null,"",null,null,0,null,"",null,null,0,null,"",null,null,0,0,0,0]
[85,85,null,null,null,0,null,"",null,null,0,null,"",null,null,0,null,"",null,null,0,null,"",null,null,0,null,"",null,null,0,0,0,0]
[86,86,null,null,null,0,null,"",null,null,0,null,"",null,null,0,null,"",null,null,0,null,"",null,null,0,null,"",null,null,0,0,0,0]
[87,87,null,null,null,0,null,"",null,null,0,null,"",null,null,0,null,"",null,null,0,null,"",null,null,0,null,"",null,null,0,0,0,0]
[88,88,null,null,null,0,null,"",null,null,0,null,"",null,null,0,null,"",null,null,0,null,"",null,null,0,null,"",null,null,0,0,0,0]
[89,89,null,null,null,0,null,"",null,null,0,null,"",null,null,0,null,"",null,null,0,null,"",null,null,0,null,"",null,null,0,0,0,0]
[90,90,null,null,null,0,null,"",null,null,0,null,"",null,null,0,null,"",null,null,0,null,"",null,null,0,null,"",null,null,0,0,0,0]
[91,91,null,null,null,0,null,"",null,null,0,null,"",null,null,0,null,"",null,null,0,null,"",null,null,0,null,"",null,null,0,0,0,0]
[92,92,null,null,null,0,null,"",null,null,0,null,"",null,null,0,null,"",null,null,0,null,"",null,null,0,null,"",null,null,0,0,0,0]
[93,93,null,null,null,0,null,"",null,null,0,null,"",null,null,0,null,"",null,null,0,null,"",null,null,0,null,"",null,null,0,0,0,0]
[94,94,null,null,null,0,null,"",null,null,0,null,"",null,null,0,null,"",null,null,0,null,"",null,null,0,null,"",null,null,0,0,0,0]
[95,95,null,null,null,0,null,"",null,null,0,null,"",null,null,0,null,"",null,null,0,null,"",null,null,0,null,"",null,null,0,0,0,0]
[96,96,null,null,null,0,null,"",null,null,0,null,"",null,null,0,null,"",null,null,0,null,"",null,null,0,null,"",null,null,0,0,0,0]
[97,97,null,null,null,0,null,"",null,null,0,null,"",null,null,0,null,"",null,null,0,null,"",null,null,0,null,"",null,null,0,0,0,0]
[98,98,null,null,null,0,null,"",null,null,0,null,"",null,null,0,null,"",null,null,0,null,"",null,null,0,null,"",null,null,0,0,0,0]
[99,99,null,null,null,0,null,"",null,null,0,null,"",null,null,0,null,"",null,null,0,null,"",null,null,0,null,"",null,null,0,0,0,0]
[100,100,null,null,null,0,null,"",null,null,0,null,"",null,null,0,null,"",null,null,0,null,"",null,null,0,null,"",null,null,0,0,0,0]
[101,101,null,null,null,0,null,"",null,null,0,null,"",null,null,0,null,"",null,null,0,null,"",null,null,0,null,"",null,null,0,0,0,0]
[102,102,null,null,null,0,null,"",null,null,0,null,"",null,null,0,null,"",null,null,0,null,"",null,null,0,null,"",null,null,0,0,0,0]
[103,103,null,null,null,0,null,"",null,null,0,null,"",null,null,0,null,"",null,null,0,null,"",null,null,0,null,"",null,null,0,0,0,0]
[104,104,null,null,null,0,null,"",null,null,0,null,"",null,null,0,null,"",null,null,0,null,"",null,null,0,null,"",null,null,0,0,0,0]
[105,105,null,null,null,0,null,"",null,null,0,null,"",null,null,0,null,"",null,null,0,null,"",null,null,0,null,"",null,null,0,0,0,0]
[106,106,null,null,null,0,null,"",null,null,0,null,"",null,null,0,null,"",null,null,0,null,"",null,null,0,null,"",null,null,0,0,0,0]
[107,107,null,null,null,0,null,"",null,null,0,null,"",null,null,0,null,"",null,null,0,null,"",null,null,0,null,"",null,null,0,0,0,0]
[108,108,null,null,null,0,null,"",null,null,0,null,"",null,null,0,null,"",null,null,0,null,"",null,null,0,null,"",null,null,0,0,0,0]
[109,109,null,null,null,0,null,"",null,null,0,null,"",null,null,0,null,"",null,null,0,null,"",null,null,0,null,"",null,null,0,0,0,0]
[110,110,null,null,null,0,null,"",null,null,0,null,"",null,null,0,null,"",null,null,0,null,"",null,null,0,null,"",null,null,0,0,0,0]
[111,111,null,null,null,0,null,"",null,null,0,null,"",null,null,0,null,"",null,null,0,null,"",null,null,0,null,"",null,null,0,0,0,0]
[112,112,null,null,null,0,null,"",null,null,0,null,"",null,null,0,null,"",null,null,0,null,"",null,null,0,null,"",null,null,0,0,0,0]
[113,113,null,null,null,0,null,"",null,null,0,null,"",null,null,0,null,"",null,null,0,null,"",null,null,0,null,"",null,null,0,0,0,0]
[114,114,null,null,null,0,null,"",null,null,0,null,"",null,null,0,null,"",null,null,0,null,"",null,null,0,null,"",null,null,0,0,0,0]
[115,115,null,null,null,0,null,"",null,null,0,null,"",null,null,0,null,"",null,null,0,null,"",null,null,0,null,"",null,null,0,0,0,0]
[116,116,null,null,null,0,null,"",null,null,0,null,"",null,null,0,null,"",null,null,0,null,"",null,null,0,null,"",null,null,0,0,0,0]
[117,117,null,null,null,0,null,"",null,null,0,null,"",null,null,0,null,"",null,null,0,null,"",null,null,0,null,"",null,null,0,0,0,0]
[118,118,null,null,null,0,null,"",null,null,0,null,"",null,null,0,null,"",null,null,0,null,"",null,null,0,null,"",null,null,0,0,0,0]
[119,119,null,null,null,0,null,"",null,null,0,null,"",null,null,0,null,"",null,null,0,null,"",null,null,0,null,"",null,null,0,0,0,0]
[120,120,null,null,null,0,null,"",null,null,0,null,"",null,null,0,null,"",null,null,0,null,"",null,null,0,null,"",null,null,0,0,0,0]
[121,121,null,null,null,0,null,"",null,null,0,null,"",null,null,0,null,"",null,null,0,null,"",null,null,0,null,"",null,null,0,0,0,0]
[122,122,null,null,null,0,null,"",null,null,0,null,"",null,null,0,null,"",null,null,0,null,"",null,null,0,null,"",null,null,0,0,0,0]
[123,123,null,null,null,0,null,"",null,null,0,null,"",null,null,0,null,"",null,null,0,null,"",null,null,0,null,"",null,null,0,0,0,0]
[124,124,null,null,null,0,null,"",null,null,0,null,"",null,null,0,null,"",null,null,0,null,"",null,null,0,null,"",null,null,0,0,0,0]
[125,125,null,null,null,0,null,"",null,null,0,null,"",null,null,0,null,"",null,null,0,null,"",null,null,0,null,"",null,null,0,0,0,0]
[126,126,null,null,null,0,null,"",null,null,0,null,"",null,null,0,null,"",null,null,0,null,"",null,null,0,null,"",null,null,0,0,0,0]
[127,127,null,null,null,0,null,"",null,null,0,null,"",null,null,0,null,"",null,null,0,null,"",null,null,0,null,"",null,null,0,0,0,0]
[128,128,null,null,null,0,null,"",null,null,0,null,"",null,null,0,null,"",null,null,0,null,"",null,null,0,null,"",null,null,0,0,0,0]
[129,129,null,null,null,0,null,"",null,null,{"$f":"IF(AND(I133:I171=13,J133:J171<>13),1,0)","v":0},null,"",null,null,{"$f":"IF(AND(N133:N171=13,O133:O171<>13),1,0)","v":0},null,"",null,null,{"$f":"IF(AND(S133:S171=13,T133:T171<>13),1,0)","v":0},null,"",null,null,{"$f":"IF(AND(X133:X171=13,Y133:Y171<>13),1,0)","v":0},null,"",null,null,0,0,0,0]
[130,130,null,null,null,{"$f":"IF(AND(D134:D172=13,E134:E172<>13),1,0)","v":0},null,{"$f":"IF(G134=1,4,IF(G134=2,6,IF(G134=3,8,\"\")))","v":""},null,null,0,null,{"$f":"IF(L134=1,4,IF(L134=2,6,IF(L134=3,8,\"\")))","v":""},null,null,0,null,{"$f":"IF(Q134=1,4,IF(Q134=2,6,IF(Q134=3,8,\"\")))","v":""},null,null,0,null,{"$f":"IF(V134=1,4,IF(V134=2,6,IF(V134=3,8,\"\")))","v":""},null,null,0,null,{"$f":"IF(AA134=1,4,IF(AA134=2,6,IF(AA134=3,8,\"\")))","v":""},null,null,{"$f":"Z134+U134+P134+K134+F134","v":0},0,0,0]
[131,131,null,null,null,0,null,"",null,null,0,null,"",null,null,0,null,"",null,null,0,null,"",null,null,0,null,"",null,null,0,0,0,0]
[132,132,null,null,null,0,null,"",null,null,0,null,"",null,null,0,null,"",null,null,0,null,"",null,null,0,null,"",null,null,0,0,0,0]
[133,133,null,null,null,0,null,"",null,null,0,null,"",null,null,0,null,"",null,null,0,null,"",null,null,0,null,"",null,null,0,0,0,0]
[134,134,null,null,null,0,null,"",null,null,0,null,"",null,null,0,null,"",null,null,0,null,"",null,null,0,null,"",null,null,0,0,0,0]
[135,135,null,null,null,0,null,"",null,null,0,null,"",null,null,0,null,"",null,null,0,null,"",null,null,0,null,"",null,null,0,0,0,0]
[136,136,null,null,null,0,null,"",null,null,0,null,"",null,null,0,null,"",null,null,0,null,"",null,null,0,null,"",null,null,0,0,0,0]
[137,137,null,null,null,0,null,"",null,null,0,null,"",null,null,0,null,"",null,null,0,null,"",null,null,0,null,"",null,null,0,0,0,0]
[138,138,null,null,null,0,null,"",null,null,0,null,"",null,null,0,null,"",null,null,0,null,"",null,null,0,null,"",null,null,0,0,0,0]
[139,139,null,null,null,0,null,"",null,null,0,null,"",null,null,0,null,"",null,null,0,null,"",null,null,0,null,"",null,null,0,{"$f":"X143+S143+N143+I143+D143","v":0},{"$f":"Y143+T143+O143+J143+E143","v":0},{"$f":"AF143-AG143","v":0}]
[140,140,null,null,null,0,null,"",null,null,0,null,"",null,null,0,null,"",null,null,0,null,"",null,null,0,null,"",null,null,0,0,0,0]
[141,141,null,null,null,0,null,"",null,null,0,null,"",null,null,0,null,"",null,null,0,null,"",null,null,0,null,"",null,null,0,0,0,0]
[142,142,null,null,null,0,null,"",null,null,0,null,"",null,null,0,null,"",null,null,0,null,"",null,null,0,null,"",null,null,0,0,0,0]
[143,143,null,null,null,0,null,"",null,null,0,null,"",null,null,0,null,"",null,null,0,null,"",null,null,0,null,"",null,null,0,0,0,0]
[144,144,null,null,null,0,null,"",null,null,0,null,"",null,null,0,null,"",null,null,0,null,"",null,null,0,null,"",null,null,0,0,0,0]
[145,145,null,null,null,0,null,"",null,null,0,null,"",null,null,0,null,"",null,null,0,null,"",null,null,0,null,"",null,null,0,0,0,0]
[146,146,null,null,null,0,null,"",null,null,0,null,"",null,null,0,null,"",null,null,0,null,"",null,null,0,null,"",null,null,0,0,0,0]
[147,147,null,null,null,0,null,"",null,null,0,null,"",null,null,0,null,"",null,null,0,null,"",null,null,0,null,"",null,null,0,0,0,0]
[148,148,null,null,null,0,null,"",null,null,0,null,"",null,null,0,null,"",null,null,0,null,"",null,null,0,null,"",null,null,0,0,0,0]
[149,149,null,null,null,0,null,"",null,null,0,null,"",null,null,0,null,"",null,null,0,null,"",null,null,0,null,"",null,null,0,0,0,0]
[150,150,null,null,null,0,null,"",null,null,0,null,"",null,null,0,null,"",null,null,0,null,"",null,null,0,null,"",null,null,0,0,0,0]
[151,151,null,null,null,0,null,"",null,null,0,null,"",null,null,0,null,"",null,null,0,null,"",null,null,0,null,"",null,null,0,0,0,0]

{"sheet":"Feuil2","index":1,"n_rows":0,"n_cols":0,"rows_kept":0,"cut":false,"hidden":false,"merged":[]}

{"sheet":"Feuil3","index":2,"n_rows":0,"n_cols":0,"rows_kept":0,"cut":false,"hidden":false,"merged":[]}